bitfinex/quotes_SOLUSD_20240930
["timestamp","ask_amount","ask_price","bid_price","bid_amount"]
[1727734317135,6.174,156.39,156.27,20.0]
[1727734317444,1.59897204,156.38,156.29,20.0]
[1727734317941,16.3438,156.37,156.26,15.17157168]
[1727734318151,16.3438,156.37,156.26,26.50916352]
[1727734318152,1.59929861,156.36,156.26,26.50916352]
[1727734318357,1.59929861,156.36,156.26,19.83268417]
[1727734318859,16.3438,156.37,156.27,11.33759184]
[1727734319233,1.59908052,156.36,156.29,11.33759184]
[1727734319534,1.59908052,156.36,156.3,23.776884]
[1727734320251,1.59908052,156.36,156.29,11.33759184]
[1727734321662,1.59908052,156.36,156.28,43.776884]
[1727734321833,16.3438,156.37,156.28,43.776884]
[1727734322743,1.59923509,156.36,156.28,43.776884]
[1727734323136,15.5272,156.35,156.26,20.0]
[1727734323336,1.59939995,156.34,156.26,20.0]
[1727734323648,1.59939995,156.34,156.28,11.33759184]
[1727734323852,15.5272,156.35,156.28,11.33759184]
[1727734324157,15.5272,156.35,156.28,20.0]
[1727734329836,15.5272,156.35,156.29,23.776884]
[1727734330041,15.5272,156.35,156.31,11.33759184]
[1727734330242,15.5272,156.35,156.3,11.33759184]
[1727734333259,15.5272,156.35,156.34,11.33759184]
[1727734333439,22.7674,156.39,156.34,11.33759184]
[1727734333639,22.7674,156.39,156.35,11.33759184]
[1727734333840,22.7674,156.39,156.34,11.33759184]
[1727734335251,22.7674,156.39,156.35,11.33759184]
[1727734335453,22.7674,156.39,156.34,11.33759184]
[1727734336371,1.59868994,156.38,156.34,11.33759184]
[1727734336542,1.59868994,156.38,156.33,11.33759184]
[1727734337445,22.7674,156.39,156.33,11.33759184]
[1727734337867,22.7674,156.39,156.34,11.33759184]
[1727734338769,1.598762,156.38,156.31,23.776884]
[1727734338951,1.598762,156.38,156.32,31.33759184]
[1727734339979,22.7674,156.39,156.32,31.33759184]
[1727734342071,22.7674,156.39,156.33,11.33759184]
[1727734344471,22.7674,156.39,156.34,11.33759184]
[1727734346372,16.5934,156.39,156.35,11.33759184]
[1727734346553,16.5934,156.39,156.36,11.33759184]
[1727734351175,16.5934,156.39,156.35,11.33759184]
[1727734355181,16.5934,156.39,156.34,20.0]
[1727734355859,1.59879825,156.38,156.34,20.0]
[1727734356054,1.59879825,156.38,156.32,31.33759184]
[1727734358859,1.59879825,156.38,156.31,31.33759184]
[1727734359081,1.59879825,156.38,156.31,20.0]
[1727734359082,6.0112,156.37,156.31,20.0]
[1727734359382,1.59912482,156.36,156.31,20.0]
[1727734359880,1.59912482,156.36,156.29,11.33759184]
[1727734361159,1.59912482,156.36,156.3,20.0]
[1727734361583,6.0112,156.37,156.3,20.0]
[1727734361768,6.0112,156.37,156.3,39.83268417]
[1727734362081,16.5934,156.39,156.32,20.0]
[1727734362280,1.59883837,156.38,156.34,11.33759184]
[1727734362480,1.59883837,156.38,156.33,11.33759184]
[1727734363271,16.5934,156.39,156.33,11.33759184]
[1727734365178,1.59884836,156.38,156.33,11.33759184]
[1727734365597,16.5934,156.39,156.33,11.33759184]
[1727734367388,1.59883504,156.38,156.33,11.33759184]
[1727734368868,16.5934,156.39,156.33,11.33759184]
[1727734372478,1.59883521,156.38,156.33,11.33759184]
[1727734372982,16.5934,156.39,156.33,11.33759184]
[1727734377976,16.5934,156.39,156.32,20.0]
[1727734378175,16.5934,156.39,156.29,11.33759184]
[1727734378176,1.59895995,156.38,156.29,11.33759184]
[1727734378413,15.687,156.37,156.27,11.33759184]
[1727734378583,1.59929759,156.36,156.24,13.2009669]
[1727734378903,6.1889,156.35,156.27,11.33759184]
[1727734379085,1.59936257,156.34,156.27,11.33759184]
[1727734379286,15.687,156.33,156.24,6.6778669]
[1727734379601,1.59956403,156.32,156.24,11.33759184]
[1727734380100,15.687,156.33,156.26,11.33759184]
[1727734380399,15.687,156.33,156.29,11.33759184]
[1727734380595,15.687,156.33,156.22,16.5485]
[1727734380596,15.687,156.33,156.31,11.33759184]
[1727734380772,6.1612,156.39,156.31,11.33759184]
[1727734380773,15.687,156.38,156.31,11.33759184]
[1727734380976,15.687,156.38,156.31,23.776884]
[1727734380977,1.5990848,156.37,156.31,23.776884]
[1727734382582,15.687,156.38,156.31,23.776884]
[1727734383112,1.59908016,156.37,156.31,23.776884]
[1727734384300,1.59908016,156.37,156.3,11.33759184]
[1727734384501,1.59908016,156.37,156.29,23.776884]
[1727734384705,1.59908016,156.37,156.3,20.0]
[1727734385405,1.59908016,156.37,156.29,43.776884]
[1727734385608,1.59908016,156.37,156.29,20.0]
[1727734386405,17.97363436,156.36,156.22,31.22869233]
[1727734386605,16.3744,156.33,156.22,22.7336]
[1727734386810,1.59965051,156.32,156.24,11.33759184]
[1727734386998,1.59965051,156.32,156.25,11.33759184]
[1727734387988,1.59965051,156.32,156.23,43.776884]
[1727734388190,1.59965051,156.32,156.25,43.776884]
[1727734392312,16.3744,156.33,156.25,43.776884]
[1727734392313,16.3744,156.33,156.25,55.11447584]
[1727734392613,1.59956902,156.32,156.25,55.11447584]
[1727734405628,1.59956902,156.32,156.25,43.776884]
[1727734406219,16.3744,156.33,156.25,43.776884]
[1727734410608,1.59966997,156.32,156.25,43.776884]
[1727734414435,16.3744,156.33,156.25,43.776884]
[1727734416841,16.3744,156.33,156.26,11.33759184]
[1727734418536,16.3744,156.33,156.25,43.776884]
[1727734418843,1.59956083,156.32,156.25,43.776884]
[1727734427047,1.59956083,156.32,156.25,20.0]
[1727734427352,6.0166,156.3,156.18,6.1288]
[1727734427533,15.0784,156.28,156.2,11.33759184]
[1727734427846,1.60008165,156.27,156.2,11.33759184]
[1727734428352,1.60008165,156.27,156.19,11.33759184]
[1727734428854,1.60008165,156.27,156.2,20.0]
[1727734429144,1.60008165,156.27,156.14,27.9093969]
[1727734429343,1.60008165,156.27,156.17,11.33759184]
[1727734430648,1.60008165,156.27,156.18,23.776884]
[1727734430851,6.258,156.25,156.18,23.776884]
[1727734431152,6.258,156.25,156.17,31.33759184]
[1727734431349,6.258,156.25,156.17,11.33759184]
[1727734431556,1.60041968,156.24,156.17,11.33759184]
[1727734432751,1.60041968,156.24,156.18,23.776884]
[1727734438629,6.258,156.25,156.18,23.776884]
[1727734438944,6.258,156.25,156.19,11.33759184]
[1727734439452,7.85824949,156.25,156.19,11.33759184]
[1727734444856,7.85824949,156.25,156.19,20.0]
[1727734445159,7.85824949,156.25,156.19,31.33759184]
[1727734450943,7.85824949,156.25,156.19,20.0]
[1727734455874,6.258,156.25,156.19,20.0]
[1727734456658,6.258,156.25,156.19,31.33759184]
[1727734456984,16.4246,156.26,156.21,11.33759184]
[1727734457146,16.4246,156.26,156.24,11.33759184]
[1727734457346,16.1065,156.3,156.25,11.33759184]
[1727734457560,16.1065,156.3,156.26,11.33759184]
[1727734461051,16.1065,156.3,156.27,11.33759184]
[1727734463964,16.1065,156.3,156.21,15.6544]
[1727734463965,16.1065,156.3,156.26,11.33759184]
[1727734466465,16.1065,156.3,156.25,11.33759184]
[1727734466681,16.1065,156.3,156.24,20.0]
[1727734466862,16.1065,156.3,156.24,31.33759184]
[1727734474278,16.1065,156.3,156.25,11.33759184]
[1727734477266,16.1065,156.3,156.26,11.33759184]
[1727734483088,1.59973041,156.29,156.24,20.0]
[1727734483291,1.59973041,156.29,156.17,15.8294]
[1727734483589,1.59973041,156.29,156.2,11.33759184]
[1727734484674,1.59973041,156.29,156.21,20.0]
[1727734485097,16.1065,156.3,156.22,20.0]
[1727734489092,1.60011343,156.29,156.22,20.0]
[1727734489301,1.60011343,156.29,156.22,11.33759184]
[1727734491074,16.4855,156.27,156.19,20.0]
[1727734491394,1.60028278,156.26,156.19,20.0]
[1727734492381,1.60028278,156.26,156.17,20.0]
[1727734493403,1.60028278,156.26,156.18,23.776884]
[1727734493700,1.60028278,156.26,156.19,20.0]
[1727734504206,1.60028278,156.26,156.07,6.415]
[1727734504391,15.2957,156.25,156.11,6.4216]
[1727734504708,1.60063062,156.24,156.13,11.33759184]
[1727734505610,6.0147,156.23,156.13,11.33759184]
[1727734505824,1.60069756,156.22,156.14,23.776884]
[1727734507194,1.60069756,156.22,156.15,20.0]
[1727734511808,15.0673,156.21,156.09,23.21660465]
[1727734511998,1.60091146,156.2,156.1,11.33759184]
[1727734512198,1.60091146,156.2,156.09,16.5361]
[1727734512395,1.60091146,156.2,156.07,6.0109]
[1727734512396,16.596,156.18,156.07,6.0109]
[1727734512591,1.60110139,156.17,156.07,17.34849184]
[1727734513719,1.60110139,156.17,156.08,20.0]
[1727734514625,15.391,156.16,156.05,11.33759184]
[1727734514800,15.391,156.16,156.04,6.683059]
[1727734514801,1.60145705,156.15,156.04,6.683059]
[1727734515000,1.60145705,156.15,156.0,16.2751036]
[1727734515229,15.391,156.14,156.02,13.42871745]
[1727734515522,1.60172516,156.13,156.02,18.08329924]
[1727734516402,1.60172516,156.13,156.03,20.0]
[1727734517198,6.0926,156.12,156.03,20.0]
[1727734517411,1.60180859,156.11,156.03,20.0]
[1727734517925,15.6071,156.1,156.03,20.0]
[1727734518216,15.6071,156.1,156.02,0.0798074]
[1727734518217,1.60191797,156.09,156.02,0.0798074]
[1727734519217,6.013,156.07,156.02,0.0798074]
[1727734519419,1.60240831,156.06,156.02,0.0798074]
[1727734529710,16.5396,156.05,156.02,0.0798074]
[1727734530031,1.60267645,156.04,156.02,0.0798074]
[1727734530831,23.776884,156.03,156.02,0.0798074]
[1727734534310,16.5396,156.05,156.02,0.0798074]
[1727734536017,1.60267307,156.04,156.02,0.0798074]
[1727734536816,16.5396,156.05,156.02,0.0798074]
[1727734538034,1.60266938,156.04,156.02,0.0798074]
[1727734538737,16.5396,156.05,156.02,0.0798074]
[1727734539513,1.60266987,156.04,156.02,0.0798074]
[1727734539924,16.5396,156.05,156.02,0.0798074]
[1727734540130,22.9478,156.05,156.02,0.0798074]
[1727734540343,1.60268322,156.04,156.02,0.0798074]
[1727734540744,22.9478,156.05,156.02,0.0798074]
[1727734540917,24.55048853,156.05,156.02,0.0798074]
[1727734542630,23.776884,156.04,156.02,0.0798074]
[1727734542940,25.37986491,156.03,156.02,0.0798074]
[1727734545032,23.776884,156.03,156.02,0.0798074]
[1727734545425,16.5396,156.05,156.02,0.0798074]
[1727734545426,18.14248661,156.05,156.02,0.0798074]
[1727734546231,16.5396,156.05,156.02,0.0798074]
[1727734546642,18.14233374,156.05,156.02,0.0798074]
[1727734547536,18.14236405,156.05,156.02,0.0798074]
[1727734553943,37.38236405,156.05,156.02,0.0798074]
[1727734554148,23.776884,156.04,156.02,0.0798074]
[1727734554448,1.60287385,156.03,156.02,0.0798074]
[1727734555251,25.37975785,156.03,156.02,0.0798074]
[1727734556046,23.776884,156.03,156.02,0.0798074]
[1727734556342,16.5396,156.05,156.02,0.0798074]
[1727734558347,8.01133458,156.04,156.02,0.0798074]
[1727734558847,6.4086,156.04,156.02,0.0798074]
[1727734559857,1.6027585,156.03,156.02,0.0798074]
[1727734560033,6.4086,156.04,156.02,0.0798074]
[1727734560233,1.60275555,156.06,156.02,0.0798074]
[1727734560453,1.60257841,156.06,156.02,0.0798074]
[1727734561449,1.60275504,156.05,156.02,0.0798074]
[1727734561828,23.776884,156.04,156.02,0.0798074]
[1727734562078,31.78876333,156.03,156.02,0.0798074]
[1727734562435,6.409,156.03,156.02,0.0798074]
[1727734562641,8.01185555,156.03,156.02,0.0798074]
[1727734563028,59.70333955,156.03,156.0,0.2375036]
[1727734563228,59.70333955,156.03,155.91,11.33759184]
[1727734563229,43.016884,156.02,155.91,6.6644]
[1727734563450,43.016884,156.0,155.91,6.6644]
[1727734563641,23.776884,155.98,155.91,6.6644]
[1727734563946,1.60346618,155.97,155.91,6.6644]
[1727734565639,23.776884,155.96,155.88,0.8444191]
[1727734565847,1.60371266,155.95,155.88,0.8444191]
[1727734566238,23.776884,155.94,155.88,0.8444191]
[1727734566430,1.60371266,155.95,155.88,0.8444191]
[1727734566431,39.679784,155.96,155.88,0.8444191]
[1727734566938,1.60376348,155.98,155.88,12.18201094]
[1727734567159,23.776884,155.98,155.88,12.18201094]
[1727734567356,1.60347325,155.97,155.88,0.8444191]
[1727734567651,15.9029,156.0,155.88,0.8444191]
[1727734567846,23.776884,155.99,155.88,0.8444191]
[1727734570262,23.776884,155.99,155.88,12.18201094]
[1727734570437,23.776884,155.97,155.88,12.18201094]
[1727734570637,23.776884,155.99,155.88,12.18201094]
[1727734571262,23.776884,155.97,155.88,0.8444191]
[1727734571438,23.776884,155.95,155.88,0.8444191]
[1727734571764,1.6038907,155.94,155.88,0.8444191]
[1727734572343,23.776884,155.93,155.88,0.8444191]
[1727734572936,1.60392654,155.92,155.88,0.8444191]
[1727734573349,23.776884,155.93,155.88,0.8444191]
[1727734573768,1.60392342,155.92,155.88,0.8444191]
[1727734573966,23.776884,155.91,155.88,0.8444191]
[1727734574265,1.60413532,155.9,155.88,0.8444191]
[1727734574463,23.776884,155.91,155.88,0.8444191]
[1727734574841,6.4135,155.92,155.88,0.8444191]
[1727734576141,1.60409968,155.91,155.88,0.8444191]
[1727734576451,34.3851,155.89,155.88,0.8444191]
[1727734576656,34.3851,155.89,155.77,11.33759184]
[1727734576657,23.776884,155.88,155.77,11.33759184]
[1727734576976,1.60454246,155.87,155.77,11.33759184]
[1727734577463,23.776884,155.86,155.77,11.33759184]
[1727734577647,1.60469383,155.85,155.77,11.33759184]
[1727734578366,1.60469383,155.85,155.76,6.67688471]
[1727734578367,23.776884,155.84,155.76,6.67688471]
[1727734578666,1.60488306,155.83,155.76,6.67688471]
[1727734579150,43.016884,155.82,155.76,6.67688471]
[1727734579357,23.776884,155.8,155.76,6.67688471]
[1727734580275,23.776884,155.81,155.76,6.67688471]
[1727734580569,25.38209278,155.81,155.76,6.67688471]
[1727734580770,19.24,155.87,155.76,6.67688471]
[1727734580954,1.60510205,155.86,155.76,6.67688471]
[1727734581159,1.6049,155.85,155.78,11.33759184]
[1727734581842,1.60460817,155.88,155.78,11.33759184]
[1727734582552,23.776884,155.87,155.78,11.33759184]
[1727734582751,1.60471706,155.86,155.78,11.33759184]
[1727734582959,1.60471276,155.86,155.76,6.67688471]
[1727734583162,1.60471276,155.86,155.77,11.33759184]
[1727734583163,23.776884,155.85,155.77,11.33759184]
[1727734583358,1.60487581,155.84,155.77,11.33759184]
[1727734583557,43.016884,155.87,155.76,6.67688471]
[1727734583966,1.60487628,155.86,155.76,6.67688471]
[1727734584157,23.776884,155.85,155.76,6.67688471]
[1727734584591,23.776884,155.87,155.76,6.67688471]
[1727734585053,23.776884,155.85,155.76,6.67688471]
[1727734585859,15.1451,155.89,155.76,6.67688471]
[1727734585860,1.60475066,155.84,155.76,6.67688471]
[1727734586176,1.60475066,155.84,155.75,20.0]
[1727734586769,9.06873039,155.88,155.75,20.0]
[1727734586770,23.776884,155.86,155.75,37.83371728]
[1727734586954,19.24,155.88,155.78,6.2146]
[1727734587161,1.60457614,155.87,155.78,6.2146]
[1727734590476,6.67278518,155.91,155.79,33.83071728]
[1727734590477,19.24,155.9,155.79,33.83071728]
[1727734590978,19.24,155.92,155.79,33.83071728]
[1727734591477,19.24,155.92,155.8,20.0]
[1727734591778,31.25904488,155.93,155.8,20.0]
[1727734591779,43.016884,155.91,155.8,20.0]
[1727734593482,1.60436259,155.9,155.8,20.0]
[1727734593661,1.60426991,155.92,155.84,20.0]
[1727734593865,1.60382607,155.97,155.85,17.83371728]
[1727734594393,19.24,155.97,155.85,17.83371728]
[1727734594681,19.24,155.97,155.87,17.83371728]
[1727734594876,19.24,156.0,155.87,17.83371728]
[1727734595072,1.60356863,155.99,155.87,20.0]
[1727734595994,19.24,155.96,155.86,6.518]
[1727734596279,1.60389043,155.95,155.86,6.518]
[1727734596590,43.016884,155.94,155.86,6.518]
[1727734596761,1.60396978,155.93,155.86,6.518]
[1727734597763,30.190484,155.92,155.86,6.518]
[1727734597965,1.60404166,155.91,155.86,6.518]
[1727734599071,8.01824166,155.91,155.86,6.518]
[1727734599291,1.60404166,155.91,155.86,6.518]
[1727734600770,23.776884,155.9,155.86,6.518]
[1727734600972,1.60419511,155.89,155.86,6.518]
[1727734601174,43.016884,155.92,155.86,6.518]
[1727734601587,1.60410032,155.91,155.86,6.518]
[1727734601787,43.016884,155.92,155.86,6.518]
[1727734602174,49.430384,155.92,155.86,6.518]
[1727734602376,1.60410548,155.91,155.86,6.518]
[1727734603795,43.016884,155.92,155.86,6.518]
[1727734603998,1.60409848,155.91,155.86,6.518]
[1727734604995,1.60403795,155.9,155.86,6.518]
[1727734605692,16.029,155.97,155.86,6.518]
[1727734605693,16.6663,155.99,155.86,6.518]
[1727734605891,20.84382564,155.97,155.86,6.518]
[1727734606499,19.24,155.97,155.86,6.518]
[1727734607689,43.016884,155.96,155.86,6.518]
[1727734608874,23.776884,155.94,155.86,6.518]
[1727734609076,43.016884,155.96,155.86,6.518]
[1727734609077,1.60391771,155.93,155.86,6.518]
[1727734610090,43.016884,155.96,155.86,6.518]
[1727734610487,23.776884,155.94,155.86,6.518]
[1727734612497,1.60393532,155.93,155.86,6.518]
[1727734615185,19.24,155.96,155.86,6.518]
[1727734615707,19.24,155.96,155.86,17.9187881]
[1727734616006,19.24,155.97,155.86,17.9187881]
[1727734616302,1.60376525,155.96,155.86,17.9187881]
[1727734616479,23.776884,155.95,155.86,17.9187881]
[1727734616796,1.60376741,155.94,155.86,17.9187881]
[1727734617212,25.6523,155.96,155.86,17.9187881]
[1727734617394,23.776884,155.94,155.86,17.9187881]
[1727734617881,1.60376732,155.93,155.86,17.9187881]
[1727734618285,23.776884,155.92,155.86,6.518]
[1727734618497,1.60410845,155.91,155.86,6.518]
[1727734621881,23.776884,155.93,155.86,6.518]
[1727734622113,25.38081063,155.93,155.86,6.518]
[1727734624186,1.60392655,155.92,155.86,6.518]
[1727734624993,20.84392655,155.92,155.86,6.518]
[1727734625192,25.38080964,155.93,155.86,6.518]
[1727734625587,23.776884,155.93,155.86,6.518]
[1727734625790,1.60385301,155.92,155.86,6.518]
[1727734631608,43.016884,155.91,155.83,16.3241]
[1727734631909,23.776884,155.89,155.83,16.3241]
[1727734632287,1.60432491,155.88,155.83,16.3241]
[1727734632488,23.776884,155.87,155.83,16.3241]
[1727734632690,1.60440063,155.86,155.83,16.3241]
[1727734633399,19.24,155.92,155.83,16.3241]
[1727734633609,23.776884,155.89,155.83,16.3241]
[1727734633801,25.38125482,155.89,155.83,16.3241]
[1727734634303,44.62125482,155.89,155.83,16.3241]
[1727734635118,25.38125482,155.89,155.83,16.3241]
[1727734637223,44.62125482,155.89,155.77,23.1569]
[1727734637390,50.93026603,155.89,155.77,23.1569]
[1727734637720,6.4163,155.86,155.77,23.1569]
[1727734637904,23.776884,155.84,155.77,23.1569]
[1727734638220,1.60486744,155.83,155.77,23.1569]
[1727734638918,6.4163,155.86,155.77,23.1569]
[1727734639117,23.776884,155.85,155.77,23.1569]
[1727734639601,1.6047404,155.84,155.77,23.1569]
[1727734640127,23.776884,155.83,155.77,23.1569]
[1727734640413,1.60488582,155.82,155.77,23.1569]
[1727734641290,1.60493077,155.81,155.77,23.1569]
[1727734641507,23.776884,155.84,155.77,23.1569]
[1727734641725,1.60493059,155.83,155.77,23.1569]
[1727734643123,23.776884,155.82,155.77,23.1569]
[1727734643333,23.776884,155.8,155.73,22.3006]
[1727734643499,23.776884,155.78,155.73,22.3006]
[1727734643816,23.776884,155.82,155.73,22.3006]
[1727734644118,30.194484,155.82,155.73,33.7013881]
[1727734644323,23.776884,155.8,155.73,22.3006]
[1727734644499,23.776884,155.78,155.73,22.3006]
[1727734644819,1.60540938,155.77,155.73,22.3006]
[1727734645199,23.776884,155.8,155.73,22.3006]
[1727734645503,23.776884,155.78,155.73,22.3006]
[1727734646192,1.6053499,155.77,155.73,22.3006]
[1727734646397,1.60539277,155.76,155.73,22.3006]
[1727734646831,1.60538728,155.8,155.73,22.3006]
[1727734647414,1.60511725,155.83,155.73,33.7013881]
[1727734647623,6.38101676,155.87,155.73,22.3006]
[1727734647624,1.60502318,155.82,155.73,22.3006]
[1727734648629,23.776884,155.81,155.73,22.3006]
[1727734648819,23.776884,155.79,155.73,22.3006]
[1727734649519,23.776884,155.82,155.73,22.3006]
[1727734649829,23.776884,155.8,155.73,22.3006]
[1727734650412,25.38217128,155.8,155.73,22.3006]
[1727734651822,6.66054449,155.84,155.73,22.3006]
[1727734652209,19.24,155.85,155.73,22.3006]
[1727734652609,1.60526452,155.84,155.73,22.3006]
[1727734652804,1.60525357,155.83,155.73,22.3006]
[1727734653029,19.24,155.85,155.73,22.3006]
[1727734654030,6.66478423,155.86,155.75,6.6464]
[1727734654330,19.24,155.88,155.76,27.6840881]
[1727734655038,19.24,155.86,155.76,27.6840881]
[1727734655410,1.60485299,155.85,155.76,27.6840881]
[1727734655628,23.776884,155.84,155.76,27.6840881]
[1727734655935,23.776884,155.85,155.76,27.6840881]
[1727734656320,1.60484898,155.84,155.76,27.6840881]
[1727734657133,23.776884,155.85,155.76,27.6840881]
[1727734657513,1.60484426,155.85,155.8,11.4007881]
[1727734657713,25.6544,155.9,155.8,11.4007881]
[1727734657912,1.60440787,155.89,155.8,11.4007881]
[1727734658217,25.6544,155.9,155.8,11.4007881]
[1727734658812,6.4152,155.88,155.79,33.1666881]
[1727734659009,1.60455054,155.87,155.79,33.1666881]
[1727734660332,1.60454965,155.87,155.79,33.1666881]
[1727734660816,8.02014965,155.87,155.79,21.7659]
[1727734661015,30.193184,155.86,155.79,21.7659]
[1727734661316,23.776884,155.86,155.79,21.7659]
[1727734662122,23.776884,155.87,155.79,21.7659]
[1727734663214,25.6552,155.88,155.79,21.7659]
[1727734663215,23.776884,155.88,155.8,11.4007881]
[1727734664034,6.4143,155.91,155.81,6.5527]
[1727734664323,6.4143,155.91,155.82,11.4007881]
[1727734664324,25.6543,155.91,155.82,11.4007881]
[1727734664739,25.6543,155.91,155.83,15.9696]
[1727734665837,1.60423847,155.9,155.83,15.9696]
[1727734666335,6.4147,155.89,155.83,15.9696]
[1727734666543,1.60435594,155.88,155.83,15.9696]
[1727734668435,23.776884,155.88,155.83,15.9696]
[1727734668820,6.4143,155.9,155.83,15.9696]
[1727734669021,38.32305961,155.94,155.83,15.9696]
[1727734669022,23.776884,155.91,155.83,15.9696]
[1727734669333,30.190884,155.91,155.83,15.9696]
[1727734669832,31.79509822,155.91,155.83,15.9696]
[1727734671836,23.776884,155.89,155.83,15.9696]
[1727734672039,1.60432591,155.88,155.83,15.9696]
[1727734672742,23.776884,155.89,155.83,15.9696]
[1727734672943,25.38120678,155.89,155.83,15.9696]
[1727734673139,19.24,155.93,155.83,15.9696]
[1727734673325,23.776884,155.9,155.83,15.9696]
[1727734673525,25.38110159,155.9,155.83,15.9696]
[1727734673725,31.79540159,155.9,155.83,15.9696]
[1727734674327,30.191184,155.9,155.83,15.9696]
[1727734675244,1.60432208,155.89,155.83,15.9696]
[1727734675822,30.191184,155.9,155.83,15.9696]
[1727734677348,1.60432089,155.89,155.83,15.9696]
[1727734679053,30.191184,155.9,155.83,15.9696]
[1727734679830,23.776884,155.88,155.83,15.9696]
[1727734680051,1.60437784,155.87,155.83,15.9696]
[1727734683653,30.192984,155.86,155.81,6.5527]
[1727734683948,8.02103481,155.85,155.81,6.5527]
[1727734684638,1.60463481,155.85,155.81,6.5527]
[1727734684844,23.776884,155.84,155.79,16.4114]
[1727734685057,30.194584,155.82,155.79,16.4114]
[1727734685352,30.194584,155.82,155.77,6.1344]
[1727734685353,1.60490966,155.81,155.77,6.1344]
[1727734686057,23.776884,155.83,155.77,6.1344]
[1727734686239,1.60493435,155.82,155.77,6.1344]
[1727734687335,8.02263435,155.82,155.77,6.1344]
[1727734687640,6.4177,155.82,155.77,6.1344]
[1727734688456,23.776884,155.84,155.77,6.1344]
[1727734688647,23.776884,155.82,155.77,6.1344]
[1727734689460,1.60497948,155.81,155.77,6.1344]
[1727734690836,23.776884,155.82,155.77,6.1344]
[1727734692261,23.776884,155.84,155.77,6.1344]
[1727734692657,30.193784,155.84,155.77,6.1344]
[1727734696465,6.4161,155.86,155.78,11.4189442]
[1727734696649,6.4156,155.87,155.79,11.4189442]
[1727734696853,6.4156,155.87,155.8,15.307]
[1727734697196,6.4152,155.88,155.81,11.4189442]
[1727734697347,6.4148,155.89,155.82,6.3558]
[1727734697754,6.66078597,155.93,155.82,17.7747442]
[1727734698050,6.414,155.91,155.84,11.4189442]
[1727734698975,1.60411102,155.9,155.84,11.4189442]
[1727734699179,1.60411102,155.9,155.82,17.7747442]
[1727734701678,23.776884,155.89,155.82,17.7747442]
[1727734701857,1.60427937,155.88,155.82,17.7747442]
[1727734702964,8.01977937,155.88,155.82,6.3558]
[1727734703170,6.4161,155.86,155.82,6.3558]
[1727734703370,1.60450804,155.85,155.82,6.3558]
[1727734703677,8.02090804,155.85,155.82,6.3558]
[1727734704658,23.776884,155.84,155.8,15.307]
[1727734704860,8.02191586,155.83,155.8,15.307]
[1727734705165,1.6047157,155.82,155.8,15.307]
[1727734705366,6.4168,155.84,155.8,15.307]
[1727734705580,6.4164,155.85,155.8,15.307]
[1727734712460,1.60464911,155.84,155.8,15.307]
[1727734714700,6.4172,155.83,155.8,15.307]
[1727734714879,1.60473891,155.82,155.8,15.307]
[1727734715594,43.086884,155.87,155.8,15.307]
[1727734715595,6.4168,155.84,155.8,15.307]
[1727734715764,43.086884,155.87,155.8,15.307]
[1727734715765,1.60466049,155.83,155.8,15.307]
[1727734715966,6.4168,155.84,155.8,15.307]
[1727734716187,1.60464722,155.83,155.8,15.307]
[1727734717477,8.02184722,155.83,155.8,15.307]
[1727734717679,1.60476429,155.82,155.8,15.307]
[1727734718192,6.4172,155.83,155.8,15.307]
[1727734719866,43.086884,155.87,155.78,6.2852]
[1727734720079,23.776884,155.82,155.78,6.2852]
[1727734720298,1.60493428,155.81,155.78,6.2852]
[1727734721179,23.776884,155.86,155.78,6.2852]
[1727734721399,6.4169,155.84,155.78,6.2852]
[1727734723378,19.31,155.89,155.78,6.2852]
[1727734723576,6.4156,155.87,155.78,17.7041442]
[1727734724193,19.31,155.89,155.78,17.7041442]
[1727734724194,6.4161,155.86,155.78,17.7041442]
[1727734727490,1.60458778,155.85,155.78,17.7041442]
[1727734727695,6.4168,155.84,155.78,6.2852]
[1727734728004,1.60479274,155.83,155.78,6.2852]
[1727734728899,8.02199274,155.83,155.78,6.2852]
[1727734729104,1.60478763,155.82,155.78,6.2852]
[1727734729486,6.4172,155.83,155.78,6.2852]